Cogmind - Beta 12 *** ADVENTURER MODE // 2024.01.21 @ 09:11:21 // Winter2019/RPGLIKE Player: core_nxt Result: Self-destructed Performance ------------- Evolutions (1) 500 Regions Visited (3) 600 Robots Destroyed (58) 290 Value Destroyed (1318) 1318 Prototype IDs (11) 220 Alien Tech Used (0) 0 Bonus (90) 90 TOTAL SCORE: 3018 Bonus ------- High Alert Combat Kills 90 Cogmind --------- Core Integrity 581/600 Matter 400/400 Energy 480/480 System Corruption 0% Temperature Hot (299) Movement Flying (40) Location -9/Mines Parts ------- > --- POWER (1) -------- Heavy Ion Engine > --- PROPULSION (1) --- Improved Flight Unit > --- UTILITY (4) ------ Structural Scanner Improved Signal Interpreter Terrain Scanner Transport Network Coupler > --- WEAPON (2) ------- Improved EM Shotgun Improved Medium Laser > --- INVENTORY (7) ---- Protomatter-57 Protomatter-55 Particle Charger Improved EM Shotgun Advanced Beam Cannon Advanced Beam Cannon Rocket Launcher Peak State ------------ > --- POWER ------------ Heavy Ion Engine > --- PROPULSION ------- Aerolev Unit > --- UTILITY ---------- Structural Scanner Improved Signal Interpreter Terrain Scanner Transport Network Coupler > --- WEAPON ----------- Improved EM Shotgun Improved Medium Laser > --- INVENTORY -------- Protomatter Protomatter Improved EM Shotgun Improved EM Shotgun Improved Medium Laser [Rating: 20] Favorites ----------- Power Heavy Ion Engine Engine Heavy Ion Engine Propulsion Aluminum Leg Leg Aluminum Leg Hover Unit Aerolev Unit Flight Unit Improved Flight Unit Utility Transport Network Coupler Device Terrain Scanner Processor Transport Network Coupler Weapon Improved Medium Laser Energy Gun Improved Medium Laser Ballistic Gun Light Assault Rifle Build | -11 -10 -9 -9 ------- Run | Jun Mat Mat Min Slots Evolved 4 | 4 . . . Power . | . . . . Propulsion . | . . . . Utility 3 | 3 . . . Weapon 1 | 1 . . . Parts Attached 18 | 1 4 13 . Power 2 | . . 2 . Engine 2 | . . 2 . Core . | . . . . Reactor . | . . . . Propulsion 2 | . . 2 . Treads . | . . . . Leg . | . . . . Wheel . | . . . . Hover 1 | . . 1 . Flight 1 | . . 1 . Utility 5 | . 2 3 . Device 2 | . . 2 . Storage . | . . . . Processor 3 | . 2 1 . Hackware . | . . . . Protection . | . . . . Artifact . | . . . . Weapon 9 | 1 2 6 . Energy Gun 8 | 1 2 5 . Energy Cannon . | . . . . Ballistic Gun 1 | . . 1 . Ballistic Cannon . | . . . . Launcher . | . . . . Special Weapon . | . . . . Impact Weapon . | . . . . Slashing Weapon . | . . . . Piercing Weapon . | . . . . Special Melee Weapon . | . . . . Unidentified Prototypes 6 | . 1 5 . Parts Lost . | . . . . Power . | . . . . Propulsion . | . . . . Utility . | . . . . Weapon . | . . . . Highest Loss Streak . | . . . . To Critical Strikes . | . . . . Average Slot Usage (%) 85 | . 70 89 100 Engine 12 | . 12 12 12 Leg 9 | . 12 8 . Hover 1 | . . 2 . Device 12 | . . 15 25 Processor 23 | . 20 25 25 Energy Gun 24 | . 22 24 25 Naked Turns . | . . . . Heaviest Build 16 | 8 11 16 16 Greatest Support 30 | 30 30 30 25 Greatest Overweight (x) . | . . . . Average Overweight (x) . | . . . . Largest Inventory Capacity 7 | 5 5 7 7 Average Capacity 5 | 5 5 5 7 Most Carried 7 | . 5 7 7 Average Carried 5 | . 3 5 7 Final Capacity 7 | 5 5 7 7 Final Carried 7 | . 5 7 7 Class Distribution -------------------- 70% | Wizard-Mutant 23% | Wizard-Scout 6% | Wizard-Skirmisher Dominant Class ---------------- Wizard-Mutant | -10/Materials Wizard-Mutant | -9/Materials Wizard-Scout | -9/Mines Resources | -11 -10 -9 -9 ----------- Run | Jun Mat Mat Min Matter Collected 483 | 230 123 130 . Remotely . | . . . . Salvage Created 1941 | . 278 1509 154 Parts 128 | . 26 94 8 Haulers Intercepted 7 | . 2 5 . Recyclers Shooed . | . . . . Parts Field Recycled . | . . . . Retrieved Matter . | . . . . Parts Self-Destructed . | . . . . Prevented . | . . . . Kills | -11 -10 -9 -9 ------- Run | Jun Mat Mat Min Combat Hostiles Destroyed 37 | . 7 27 3 Guns 35 | . 7 26 2 AOE 1 | . . . 1 Classes Destroyed 9 | . 4 5 . Worker 6 | . . 6 . Hauler 7 | . 2 5 . Recycler 1 | . . 1 . Operator 1 | . . 1 . Watcher 6 | . 1 5 . Swarmer 9 | . 2 7 . Grunt 18 | . 5 11 2 Brawler 2 | . . 1 1 Sentry 8 | . . 8 . Best Kill Streak 8 | . 5 8 3 Combat Bots Only 7 | . 4 7 3 Max Kills in Single Turn 2 | . 2 2 1 Gunslinging 1 | . 1 1 . Exploded 1 | . . . 1 Melee . | . . . . Uniques/NPCs Destroyed . | . . . . Combat | -11 -10 -9 -9 -------- Run | Jun Mat Mat Min Damage Taken 537 | . 63 449 25 Core 434 | . 45 370 19 Absorbed by Shields . | . . . . Redirected to Core 307 | . 45 249 13 Core Remaining (%) 96 | 100 92 . . Volleys Fired 98 | . 14 77 7 Largest 2 | . 2 2 2 Hottest 112 | . 112 112 101 Shots Fired 179 | . 28 138 13 Gun 179 | . 28 138 13 Cannon . | . . . . Launcher . | . . . . Special . | . . . . Kinetic 3 | . 3 . . Thermal 150 | . 25 118 7 Explosive . | . . . . Electromagnetic 26 | . . 20 6 Robot Hit Streak 71 | . 18 52 71 Robot Miss Streak 1 | . 1 1 . Penetration Max . | . . . . Secondary Targets 7 | . 3 4 . Max Gunslinging Chain 1 | . 1 1 . Shots Hit Robots 152 | . 24 115 13 Core Hits 76 | . 12 59 5 Critical Kills . | . . . . Critical Parts Destroyed . | . . . . Critical Strikes 17 | . 4 13 . Burn 17 | . 4 13 . Melee Attacks . | . . . . Impact . | . . . . Slashing . | . . . . Piercing . | . . . . Sneak Attacks . | . . . . Combat Hostiles . | . . . . Follow-up Attacks . | . . . . Damage Inflicted 2758 | . 396 2082 280 Guns 2666 | . 394 2037 235 Cannons . | . . . . Explosions 71 | . . 26 45 Melee . | . . . . Ramming 21 | . 2 19 . Kinetic 6 | . 6 . . Thermal 2185 | . 388 1646 151 Explosive . | . . . . Electromagnetic 546 | . . 417 129 Impact . | . . . . Slashing . | . . . . Piercing . | . . . . Highest Corruption . | . . . . Average Corruption . | . . . . Corruption Purged . | . . . . Corruption Blocked . | . . . . Overload Shots . | . . . . Overflow Damage . | . . . . Projectiles . | . . . . Explosions . | . . . . Melee . | . . . . Knockbacks . | . . . . Impact . | . . . . Kinetic . | . . . . Secondary . | . . . . Self-Inflicted Damage 9 | . . 9 . Shots . | . . . . Rammed 2 | . . 2 . Targets Rammed 3 | . 1 2 . Kicked 1 | . 1 . . Crushed . | . . . . Highest Temperature 421 | . 279 421 299 Average Temperature 131 | . 109 133 164 Received Heat Transfer 357 | . 39 294 24 Effects 5 | . . 5 . Shutdowns 1 | . . 1 . Energy Bleed 1 | . . 1 . Interference 3 | . . 3 . Siege Activations . | . . . . Robots Corrupted 1 | . . 1 . Combat Hostiles . | . . . . Parts Fried 4 | . . 4 . Impact Corruptions . | . . . . Robots Melted 1 | . . 1 . Combat Hostiles 1 | . . 1 . Parts Melted 12 | . 1 11 . Heat Transferred 5933 | . 1184 4477 272 Parts Sabotaged . | . . . . Parts Stolen . | . . . . Parts Stripped . | . . . . Power Chain Reactions 2 | . . 1 1 Missiles Intercepted . | . . . . Alert | -11 -10 -9 -9 ------- Run | Jun Mat Mat Min Peak Influence 628 | . 241 628 102 Initial 86 | . . 86 13 Average 245 | . 125 283 50 Maximum Alert Level 2 | . 1 2 . Low Security (%) 45 | 100 58 40 100 Level 1 28 | . 41 25 . Level 2 26 | . . 34 . Level 3 . | . . . . Level 4 . | . . . . Level 5 . | . . . . High Security . | . . . . Max Security . | . . . . Squads Dispatched . | . . . . Investigation . | . . . . Extermination . | . . . . Reinforcement . | . . . . Assault . | . . . . Garrison . | . . . . Intercept . | . . . . Searches Triggered . | . . . . Construction Impeded . | . . . . Haulers Reinforced . | . . . . Active Scanning Responses . | . . . . Cargo Convoy Interrupts . | . . . . Stealth | -11 -10 -9 -9 --------- Run | Jun Mat Mat Min Distress Signals 5 | . 1 4 . Communications Jammed . | . . . . Distress Signals . | . . . . Times Spotted 53 | . 13 37 3 Peak Tracking Total 6 | . 4 6 3 Tactical Retreats 1 | . . 1 . Traps | -11 -10 -9 -9 ------- Run | Jun Mat Mat Min Traps Triggered 1 | . . 1 . Indirectly . | . . . . Trap Hack Attempts . | . . . . Triggered . | . . . . Disarmed . | . . . . Reprogrammed . | . . . . Reused . | . . . . Traps Extracted . | . . . . Installed . | . . . . Triggered . | . . . . Machines | -11 -10 -9 -9 ---------- Run | Jun Mat Mat Min Machines Disabled 3 | . . 3 . Max in Single Turn 1 | . . 1 . Machines Repaired . | . . . . Machines Sabotaged . | . . . . Overloaded Fab Kills . | . . . . Hacking | -11 -10 -9 -9 --------- Run | Jun Mat Mat Min Machines Accessed 13 | . 4 9 . Terminals 12 | . 4 8 . Fabricators . | . . . . Repair Stations . | . . . . Recycling Units . | . . . . Scanalyzers 1 | . . 1 . Garrison Access . | . . . . Total Hacks 48 | . 8 40 . Successful 44 | . 7 37 . Failed 4 | . 1 3 . Catastrophic . | . . . . Database Lockouts . | . . . . Manual 13 | . 5 8 . Terminals 38 | . 8 30 . Fabricators . | . . . . Repair Stations . | . . . . Recycling Units . | . . . . Scanalyzers 10 | . . 10 . Garrison Access . | . . . . Terminal Hacks 30 | . 5 25 . Record 1 | . . 1 . Robot Analysis 4 | . . 4 . Prototype ID Bank 5 | . 1 4 . Level Access Points 2 | . 1 1 . Branch Access Points 2 | . 1 1 . Terminal Index 1 | . . 1 . Alert Level 2 | . . 2 . Unreport Threat 3 | . . 3 . Locate Traps 2 | . 1 1 . Transport Status 1 | . . 1 . Hauler Manifests 1 | . . 1 . Registered Components 3 | . 1 2 . Registered Prototypes 2 | . . 2 . Zone Layout 1 | . . 1 . Fabricator Hacks . | . . . . Repair Station Hacks . | . . . . Recycling Unit Hacks . | . . . . Scanalyzer 10 | . . 10 . Insert Component 4 | . . 4 . Analyze 6 | . . 6 . Garrison Access Hacks . | . . . . Unauthorized Hacks 4 | . 2 2 . Terminals 4 | . 2 2 . Assimilate 1 | . . 1 . Disrupt 2 | . 1 1 . Operators 1 | . 1 . . Fabricators . | . . . . Repair Stations . | . . . . Recycling Units . | . . . . Scanalyzers . | . . . . Garrison Access . | . . . . Data Cores Recovered 1 | . . 1 . Used 1 | . . 1 . Hacking Detections 2 | . 1 1 . Full Trace Events . | . . . . Feedback Events . | . . . . Feedback Blocked . | . . . . Robot Schematics Acquired . | . . . . Robots Built . | . . . . Authchips . | . . . . Time . | . . . . Total Robot Build Rating . | . . . . Part Schematics Acquired 4 | . . 4 . Parts Built . | . . . . Authchips . | . . . . Time . | . . . . Total Part Build Rating . | . . . . Parts Repaired . | . . . . Time . | . . . . Parts Recycled . | . . . . Recycled Matter . | . . . . Retrieved Matter . | . . . . Retrieved Components . | . . . . Parts Scanalyzed 4 | . . 4 . Part Schematics Acquired 4 | . . 4 . Parts Damaged 1 | . . 1 . Bothacking | -11 -10 -9 -9 ------------ Run | Jun Mat Mat Min Used RIF Installer . | . . . . Robots Hacked . | . . . . Non-combat . | . . . . Combat . | . . . . Robot Hacks Applied . | . . . . Relay Couplers Released . | . . . . Fabnet Peak Effective % . | . . . . Robots Rewired . | . . . . Allies Hacked . | . . . . Hacks Repelled . | . . . . Allies | -11 -10 -9 -9 -------- Run | Jun Mat Mat Min Total Allies 1 | . . 1 . Largest Group 1 | . . 1 1 Highest-Rated Group 10 | . . 10 10 Highest-Rated Ally 10 | . . 10 10 Total Orders . | . . . . Ally Attacks . | . . . . Total Damage . | . . . . Kills . | . . . . Allies Corrupted . | . . . . Allies Melted . | . . . . Intel | -11 -10 -9 -9 ------- Run | Jun Mat Mat Min Robot Analysis Total 4 | . . 4 . Derelict Logs Recovered . | . . . . Drone Launches . | . . . . Drone Recoveries . | . . . . Exploration | -11 -10 -9 -9 ------------- Run | Jun Mat Mat Min Turns Passed 1618 | 9 338 1245 26 Spaces Moved 1341 | 7 231 1090 13 Core . | . . . . Treads . | . . . . Legs 800 | 7 231 562 . Wheels . | . . . . Hover 358 | . . 358 . Flight 183 | . . 170 13 Fastest Speed 40 | 120 120 40 40 Average Speed 90 | 120 120 84 40 Slowest Speed 120 | 120 120 120 40 Overloaded Moves . | . . . . Propulsion Burnouts . | . . . . Robots Hopped . | . . . . Cave-ins Triggered . | . . . . Exploration Rate (%) 36 | 2 45 85 14 Regions Visited 3 Branch Regions 1 Pre-discovered Areas . | . . . . Known Exits Taken 2 | . 1 1 . Unknown Exits Taken 1 | 1 . . . Scrap Searched . | . . . . Spaces Dug . | . . . . Terrain Destroyed 5 | . . 1 4 Melee . | . . . . Projectile . | . . . . AOE 5 | . . 1 4 Terrain Rammed . | . . . . Walls Destroyed . | . . . . Machines Disabled . | . . . . Actions | -11 -10 -9 -9 --------- Run | Jun Mat Mat Min Total 1569 | 7 264 1278 20 Wait 45 | . 2 43 . Move 1338 | 6 230 1089 13 Hop . | . . . . Pick Up 18 | . 8 10 . Fast Attach 16 | 1 3 12 . Attach . | . . . . Detach 1 | . 1 . . Swap 2 | . 1 1 . Drop 19 | . 4 15 . Fire 98 | . 14 77 7 Melee . | . . . . Ram 2 | . . 2 . Kick 1 | . 1 . . Crush . | . . . . Escape Stasis . | . . . . Rewire . | . . . . Trap . | . . . . Miscellaneous 29 | . . 29 . Route ------- -11/Junkyard -10/Materials (discovered 4 exits: *Mat x3 / *Min) -9/Materials (discovered 7 exits: *Mat x3 / *Min x2 / *Sto x2) -9/Mines History --------- Turn | Location | Event 1 | -11/Junkyard | Upgraded with Utility slot (x3) 1 | -11/Junkyard | Upgraded with Weapon slot (x1) 1 | -11/Junkyard | Discovered new exit (range 1) 10 | -11/Junkyard | Entered Materials 15 | -10/Materials | Identified exit to Mines 15 | -10/Materials | Identified exit to Materials 305 | -10/Materials | Build established: Wizard-Mutant 348 | -10/Materials | Entered another Materials area 350 | -9/Materials | Reached level 2 350 | -9/Materials | Reached level 3 407 | -9/Materials | Reached level 4 582 | -9/Materials | Discovered new exit (range 9) 628 | -9/Materials | Identified exit to Storage 772 | -9/Materials | Reached level 5 811 | -9/Materials | Discovered new exit (range 20) 834 | -9/Materials | Identified exit to Materials 869 | -9/Materials | Discovered new exit (range 8) 913 | -9/Materials | Destroyed 7 combat bots 1240 | -9/Materials | Discovered exit to Materials (range 10) 1285 | -9/Materials | Identified exit to Mines 1439 | -9/Materials | Discovered exit to Materials (range 12) 1473 | -9/Materials | Reached level 6 1544 | -9/Materials | Build established: Wizard-Scout 1593 | -9/Materials | Entered Mines 1593 | -9/Mines | Accompanied by 1 ally 1619 | -9/Mines | Self-destructed Last Messages --------------- (50,90) (16,55) (89,52) Map updated. >>Traps(Locate) Found 1 trap in 1 array: 1x EMP Trap Map updated. 01548_ Technician 2a reports 0b10 security level has lowered to 0. 01550_ Dropped Imp. EM Shotgun. 01551_ Acquired Rocket Launcher. 01560_ Acquired 10 matter. LOCATION=MINES GOAL=ESCAPE 01594_ K-01 Serf collects debris. 01605_ B-36 Bruiser destroyed. 01610_ G-34 Mercenary destroyed. 01616_ Chain reaction triggered in Ion Engine. 01616_ G-34 Mercenary destroyed. 01616_ K-01 Serf collects debris. Map ----- +----------------------------------------------------+ | ?????????????????????????????????????????????????? | | ?????????????????????????????????????????????????? | | ?????????????????????????????????????????????????? | | ?????????????????????????????????????????????????? | | ?????????????????????????????????????????????????? | | ?????????????????????????????????????????????????? | | ?????????????????????????????????????????????????? | | ???????????????????????###???????????????????????? | | ?????????????????????#####???????????????????????? | | ?????????????????????### ???????????????????????? | | ?????????????????????## ????????????????????????? | | ?????????????????????## ????????????????????????? | | ?????????????????????## ????????????????????????? | | ????????????????????? ????????????????????????? | | ????????????????????### ????????????????????????? | | ????????????????????### ###?????????????????????? | | ????????? ####???#??# ###??? ?????????????????? | | ????????? ###???????? ###????????????????????? | | ???????? ?????#?? ###????????????????????? | | ??????# ???????? #;##???????????????????? | | ??????## ##????#;=*%###?????? ????????????? | | ??????### ########;%[ ##???#???????????????? | | ???????## #######;%! ##?????#?????????????? | | ???????### ##%= ##???????????????????? | | ????????#### *%/ ###???????????????????? | | ??????????### !@###?????????#??????????? | | ???????????## ###????????????????????? | | ???????????### #### ##????????????????????? | | ???????????####?###### o##????????????????????? | | ???????????????????### ##????????????????????? | | ???????????????????### ###????????????????????? | | ?????????????######## #####??????????????????? | | ?????????????######## k### ##??????????????????? | | ?????????????## # ### ?????????????????? | | ?????????????## # ### ???????????????? | | ?????????????## #### ????????????? | | ?????????????## ########### ??????????? | | ?????????????## #####?########?? ?????????? | | ?????????????## """ ##?????#???###???? ??????????? | | ?????????????## """ ##???????????????????????????? | | ?????????????## """ ##???????????????????????????? | | ?????????????## ##???????????????????????????? | | ?????????????#########???????????????????????????? | | ?????????????#########???????????????????????????? | | ?????????????????????????????????????????????????? | | ?????????????????????????????????????????????????? | | | | | | | | | +----------------------------------------------------+ Best States ------------- Heat Dissipation 25 Energy Generation 29 Energy Capacity 480 Matter Stores 400 Matter Capacity 400 Sight Range 20 Robot Scan Range 8 Terrain Scan Range 14 Terrain Scan Density 10 Resistance: KI 40 Resistance: TH 40 Resistance: EX 40 Resistance: EM 20 Resistance: I 20 Resistance: S 20 Resistance: P 20 Evasion (%) 62 Offensive Hacking 70 Defensive Hacking 70 Item Schematics ----------------- Imp. EM Shotgun | -9/Materials | Scanalyzed Maul | -9/Materials | Scanalyzed Imp. Medium Laser | -9/Materials | Scanalyzed Particle Charger | -9/Materials | Scanalyzed Robot Schematics ------------------ None Fabricated ------------ Nothing Alien Tech Used ----------------- None Achievements -------------- None Challenges ------------ None RPGLIKE | -11 -10 -9 -9 --------- Run | Jun Mat Mat Min Levels Raised 5 | . . 5 . XP Earned 12903 | 4000 905 7148 850 XP Spent -15923925 | -15927175 . 3250 . Upgrades 78 | 76 . 2 . Utility Slot 3 | 3 . . . Weapon Slot 1 | 1 . . . Energy Generation 3 | 3 . . . Energy Storage 4 | 4 . . . Matter Storage 2 | 2 . . . Mass Support 4 | 4 . . . Inventory Capacity 7 | 5 . 2 . Sight Range 4 | 4 . . . Sensor Range 4 | 4 . . . Ranged Accuracy 8 | 8 . . . Hack Attack % 12 | 12 . . . Hack Defense % 14 | 14 . . . KI Resistance % 4 | 4 . . . TH Resistance % 4 | 4 . . . EX Resistance % 4 | 4 . . . Protomatter Created 599 | . 128 441 30 Integrity Restored 532 | . . 532 . Core 415 | . . 415 . Parts 117 | . . 117 . Protomatter Decayed 271 | . . 271 . Game ------ Seed ProtonCoordinationArray Manual? 0 Play Time 00:21:17 Cumulative 557.8 hours Start 2024.01.21 @ 08:36:08 End 2024.01.21 @ 09:11:21 Sessions 1 Manual Loads 0 Difficulty Adventurer Special Mode Winter2019/RPGLIKE Game No. 108 Rogue 63 Adventurer 45 Explorer 0 Win Type - Total 22 Types 6/3/1/5/1/1/1/2/2 Lore% 87 Gallery% 93 Achievement% 80 Wizard Run 0 Options --------- ASCII 0 Keyboard 0 Movement Numpad Keybinds 0 Fullscreen 2 Font 18/X11 Map View 76x50 Tactical HUD 1 Map Filters NONE Filters NONE Steam 1 RUN: 0fb3abb3-5ca3-4da2-b8bb-e25bcd9cc1b0